fUST/lending_fUST_20240918
["ID","MTS","AMOUNT","RATE_DAILY","PERIOD"]
[338465395,1726665032173,-1004.25000015,0.00018016,2]
[338465398,1726665032192,-2384.86702671,0.00018016,2]
[338465400,1726665032204,-845.6814202,0.0001811,2]
[338465402,1726665032215,-164.633501,0.0001816,2]
[338465404,1726665032224,-652.08646602,0.00019058,2]
[338465407,1726665032234,-1000.0,0.00019078,2]
[338465410,1726665032245,-3000.0,0.00019078,2]
[338465414,1726665032256,-3969.04007497,0.00019078,2]
[338465525,1726665038079,-8220.62910635,0.00019078,2]
[338465527,1726665038091,-4200.3874457,0.000191,2]
[338465529,1726665038101,-155.367407,0.000191,2]
[338465531,1726665038111,-164.633501,0.00019106,2]
[338465533,1726665038123,-71397.3523166,0.00019147,3]
[338465535,1726665038132,-256.38120192,0.00019147,2]
[338465537,1726665038143,-617.96146233,0.00019147,2]
[338465539,1726665038153,-500.0,0.00019147,2]
[338465541,1726665038163,-384.82473777,0.00019147,2]
[338465543,1726665038172,-500.0,0.00019147,2]
[338465545,1726665038181,-500.0,0.00019147,2]
[338465547,1726665038191,-500.0,0.00019147,2]
[338465549,1726665038200,-500.0,0.00019147,2]
[338465551,1726665038210,-500.0,0.00019147,2]
[338465553,1726665038225,-567.24920454,0.00019147,2]
[338465555,1726665038235,-500.0,0.00019147,2]
[338465558,1726665038244,-3441.1162423,0.00019148,5]
[338465575,1726665038460,-331365.16275247,0.00019148,3]
[338465576,1726665038487,-25621.59883053,0.00019148,3]
[338465577,1726665038499,-23114.256695,0.00019157,3]
[338465578,1726665038519,-44824.10421338,0.00019157,3]
[338465579,1726665038531,-1949.88037749,0.00019157,3]
[338465606,1726665040401,-1776.80835633,0.00019157,3]
[338465607,1726665040412,-2064.09825948,0.00019158,3]
[338465608,1726665040423,-179.981,0.00019158,2]
[338465609,1726665040435,-286660.198569,0.00019158,3]
[338465610,1726665040446,-500.0,0.00019167,2]
[338465611,1726665040457,-322.78907442,0.00019173,2]
[338465612,1726665040470,-500.0,0.00019173,2]
[338465613,1726665040480,-500.0,0.00019173,2]
[338465614,1726665040491,-500.0,0.00019173,2]
[338465615,1726665040504,-500.0,0.00019173,2]
[338465616,1726665040515,-332.62557684,0.00019173,2]
[338465617,1726665040526,-217.3318809,0.00019173,2]
[338465618,1726665040537,-500.99242898,0.00019173,2]
[338465619,1726665040548,-500.78291911,0.00019173,2]
[338465620,1726665040558,-500.0,0.00019173,2]
[338465621,1726665040569,-500.0,0.00019173,2]
[338465622,1726665040580,-500.0,0.00019173,2]
[338465623,1726665040591,-500.0,0.00019173,2]
[338465624,1726665040600,-501.02580175,0.00019173,2]
[338465625,1726665040610,-500.0,0.00019173,2]
[338465626,1726665040620,-500.0,0.00019173,2]
[338465627,1726665040632,-11296.24384018,0.00019177,2]
[338465628,1726665040643,-1441.30764285,0.00019177,2]
[338465629,1726665040654,-10000.0,0.00019177,2]
[338465630,1726665040664,-10000.0,0.00019177,2]
[338465631,1726665040674,-10000.0,0.00019177,2]
[338465632,1726665040686,-898.31657089,0.00019177,2]
[338465633,1726665040695,-160.0,0.00019177,2]
[338465634,1726665040705,-2246.47224993,0.00019178,5]
[338465635,1726665040720,-1740.95454585,0.00019178,5]
[338465636,1726665040734,-15309.55735093,0.00019178,5]
[338465637,1726665040743,-500.0,0.00019178,2]
[338465638,1726665040753,-467.18156146,0.00019178,2]
[338465639,1726665040763,-500.0,0.00019178,2]
[338465640,1726665040779,-500.0,0.00019178,2]
[338465641,1726665040789,-258.54371889,0.00019178,2]
[338465642,1726665040800,-1668.01,0.00019178,2]
[338465643,1726665040811,-151.0,0.00019178,2]
[338465644,1726665040823,-151.0,0.00019178,2]
[338465645,1726665040833,-249.992849,0.00019178,2]
[338465646,1726665040845,-500.0,0.00019178,2]
[338465648,1726665040856,-151.0,0.00019178,2]
[338465650,1726665040867,-151.0,0.00019178,2]
[338465652,1726665040878,-151.0,0.00019178,2]
[338465654,1726665040888,-500.0,0.00019178,2]
[338465656,1726665040898,-500.0,0.00019178,2]
[338465658,1726665040909,-500.0,0.00019178,2]
[338465660,1726665040920,-151.0,0.00019178,2]
[338465662,1726665040931,-689.12,0.00019178,2]
[338465664,1726665040941,-151.0,0.00019178,2]
[338465666,1726665040951,-500.0,0.00019178,2]
[338465667,1726665040962,-547.25,0.00019178,2]
[338465669,1726665040976,-500.0,0.00019178,2]
[338465671,1726665040987,-315.98371092,0.00019178,2]
[338465673,1726665040999,-151.0,0.00019178,2]
[338465675,1726665041010,-158.05926,0.00019178,2]
[338465677,1726665041021,-500.0,0.00019178,2]
[338465679,1726665041032,-500.0,0.00019178,2]
[338465681,1726665041043,-313.04695056,0.00019178,2]
[338465683,1726665041054,-1042.93,0.00019178,2]
[338465685,1726665041064,-713.34,0.00019178,2]
[338465687,1726665041073,-500.0,0.00019178,2]
[338465688,1726665041086,-1027.29459824,0.00019178,2]
[338465874,1726665043139,-298.46684654,0.00019178,2]
[338465882,1726665043202,-201.53315346,0.00019178,2]
[338465884,1726665043212,-500.0,0.00019178,2]
[338465886,1726665043222,-500.0,0.00019178,2]
[338465888,1726665043232,-500.0,0.00019178,2]
[338465890,1726665043241,-500.0,0.00019178,2]
[338465893,1726665043251,-500.0,0.00019178,2]
[338465896,1726665043260,-500.0,0.00019178,2]
[338465899,1726665043270,-500.0,0.00019178,2]
[338465901,1726665043280,-957.3,0.00019178,2]
[338465903,1726665043290,-500.0,0.00019178,2]
[338465905,1726665043300,-1158.38,0.00019178,2]
[338465907,1726665043310,-525.92,0.00019178,2]
[338465909,1726665043319,-500.0,0.00019178,2]
[338465911,1726665043329,-500.0,0.00019178,2]
[338465913,1726665043338,-500.0,0.00019178,2]
[338465915,1726665043349,-500.0,0.00019178,2]
[338465917,1726665043359,-1677.11,0.00019178,2]
[338465919,1726665043369,-513.63778498,0.00019178,2]
[338465921,1726665043380,-500.0,0.00019178,2]
[338465923,1726665043393,-500.0,0.00019178,2]
[338465925,1726665043402,-500.0,0.00019178,2]
[338465927,1726665043412,-1233.36,0.00019178,2]
[338465929,1726665043421,-500.0,0.00019178,2]
[338465931,1726665043431,-500.0,0.00019178,2]
[338465933,1726665043441,-404.06059172,0.00019178,2]
[338465935,1726665043451,-595.29,0.00019178,2]
[338465937,1726665043460,-500.0,0.00019178,2]
[338465939,1726665043470,-651.98,0.00019178,2]
[338465941,1726665043479,-757.83,0.00019178,2]
[338465943,1726665043489,-569.76034459,0.00019178,2]
[338465945,1726665043499,-650.83,0.00019178,2]
[338465947,1726665043509,-500.0,0.00019178,2]
[338465948,1726665043518,-500.0,0.00019178,2]
[338465950,1726665043527,-1134.81,0.00019178,2]
[338465952,1726665043536,-500.0,0.00019178,2]
[338465954,1726665043547,-500.0,0.00019178,2]
[338465956,1726665043556,-21.42778683,0.00019178,2]
[338466094,1726665046780,-478.57221317,0.00019178,2]
[338466095,1726665046790,-500.0,0.00019178,2]
[338466096,1726665046800,-151.0,0.00019178,2]
[338466097,1726665046809,-63.84778683,0.00019178,2]
[338466098,1726665046833,-436.15221317,0.00019178,2]
[338466099,1726665046842,-155.963199,0.00019178,2]
[338466100,1726665046851,-502.11732115,0.00019178,2]
[338466101,1726665046861,-193.04994123,0.00019178,2]
[338466102,1726665046872,-306.95005877,0.00019178,2]
[338466103,1726665046882,-594.48,0.00019178,2]
[338466104,1726665046891,-500.0,0.00019178,2]
[338466105,1726665046901,-500.0,0.00019178,2]
[338466106,1726665046910,-403.86994122,0.00019178,2]
[338466113,1726665878552,-150.0,0.000141,2]
[338466150,1726666232270,-234.377,0.00017761,2]
[338466151,1726666232279,-164.6335016,0.00017873,2]
[338466153,1726666232289,-34.89657639,0.00018,2]
[338466161,1726666232382,-265.10342361,0.00018,2]
[338466163,1726666232391,-200.0,0.000181,2]
[338466165,1726666232401,-500.0,0.000188,2]
[338466167,1726666232411,-12.80434991,0.00018899,2]
[338466170,1726666232423,-287.19565009,0.00018899,2]
[338466171,1726666232433,-300.0,0.00018899,2]
[338466173,1726666232441,-173.70834991,0.000189,2]
[338466284,1726666238337,-5323.03480309,0.000189,2]
[338466285,1726666238347,-1871.98993793,0.000189,2]
[338466286,1726666238356,-2522.80258906,0.00019,2]
[338466287,1726666238366,-57318.51,0.00019,2]
[338466288,1726666238377,-179.981,0.00019,2]
[338466289,1726666238386,-1000.0,0.00019058,2]
[338466290,1726666238396,-8220.62910634,0.00019078,2]
[338466291,1726666238408,-151.0,0.000191,2]
[338466292,1726666238418,-500.0,0.0001915,2]
[338466293,1726666238427,-68085.9101686,0.00019158,3]
[338466294,1726666238436,-500.0,0.0001916,2]
[338466295,1726666238446,-68085.9101686,0.00019167,3]
[338466296,1726666238455,-500.0,0.00019167,2]
[338466297,1726666238464,-617.96146233,0.00019167,2]
[338466298,1726666238474,-256.38120192,0.00019167,2]
[338466299,1726666238483,-500.0,0.00019167,2]
[338466300,1726666238493,-384.82473777,0.00019167,2]
[338466301,1726666238502,-500.0,0.00019167,2]
[338466302,1726666238511,-500.0,0.00019167,2]
[338466303,1726666238520,-500.0,0.00019167,2]
[338466304,1726666238529,-567.24920454,0.00019167,2]
[338466305,1726666238539,-500.0,0.00019167,2]
[338466306,1726666238548,-500.0,0.00019167,2]
[338466307,1726666238557,-500.0,0.00019167,2]
[338466308,1726666238566,-194140.7366676,0.00019168,3]
[338466309,1726666238578,-1306.32260495,0.00019168,3]
[338466328,1726666240448,-76896.58140245,0.00019168,3]
[338466330,1726666240458,-2000.0,0.0001917,2]
[338466332,1726666240467,-500.0,0.00019173,2]
[338466334,1726666240480,-500.0,0.00019173,2]
[338466336,1726666240489,-500.0,0.00019173,2]
[338466338,1726666240498,-500.0,0.00019173,2]
[338466340,1726666240507,-500.0,0.00019173,2]
[338466342,1726666240517,-500.0,0.00019173,2]
[338466344,1726666240527,-332.62557684,0.00019173,2]
[338466346,1726666240536,-217.3318809,0.00019173,2]
[338466348,1726666240546,-501.02580175,0.00019173,2]
[338466350,1726666240556,-500.78291911,0.00019173,2]
[338466352,1726666240565,-500.99242898,0.00019173,2]
[338466354,1726666240575,-500.0,0.00019173,2]
[338466356,1726666240585,-500.0,0.00019173,2]
[338466358,1726666240594,-322.78907442,0.00019173,2]
[338466359,1726666240603,-500.0,0.00019173,2]
[338466360,1726666240613,-11296.24384018,0.00019177,2]
[338466361,1726666240622,-10000.0,0.00019177,2]
[338466362,1726666240632,-10000.0,0.00019177,2]
[338466363,1726666240641,-10000.0,0.00019177,2]
[338466364,1726666240652,-898.31657089,0.00019177,2]
[338466365,1726666240661,-160.0,0.00019177,2]
[338466366,1726666240671,-1441.30764285,0.00019177,2]
[338466367,1726666240681,-10771.72819832,0.00019178,5]
[338466368,1726666240690,-3441.1162423,0.00019178,5]
[338466369,1726666240699,-151.0,0.00019178,2]
[338466370,1726666240709,-151.0,0.00019178,2]
[338466371,1726666240718,-151.0,0.00019178,2]
[338466372,1726666240727,-151.0,0.00019178,2]
[338466373,1726666240737,-151.0,0.00019178,2]
[338466374,1726666240747,-151.0,0.00019178,2]
[338466375,1726666240757,-151.0,0.00019178,2]
[338466376,1726666240766,-203.592475,0.00019178,2]
[338466377,1726666240775,-151.0,0.00019178,2]
[338466378,1726666240785,-151.0,0.00019178,2]
[338466379,1726666240793,-151.0,0.00019178,2]
[338466380,1726666240802,-151.0,0.00019178,2]
[338466381,1726666240811,-151.0,0.00019178,2]
[338466382,1726666240821,-151.0,0.00019178,2]
[338466383,1726666240830,-151.0,0.00019178,2]
[338466384,1726666240839,-299.922293,0.00019178,2]
[338466385,1726666240848,-500.0,0.00019178,2]
[338466386,1726666240857,-500.0,0.00019178,2]
[338466387,1726666240867,-193.265891,0.00019178,2]
[338466388,1726666240876,-193.265891,0.00019178,2]
[338466389,1726666240885,-193.265891,0.00019178,2]
[338466390,1726666240895,-193.265891,0.00019178,2]
[338466391,1726666240905,-193.265891,0.00019178,2]
[338466392,1726666240915,-193.265891,0.00019178,2]
[338466393,1726666240925,-193.265891,0.00019178,2]
[338466394,1726666240935,-193.265891,0.00019178,2]
[338466395,1726666240947,-193.265891,0.00019178,2]
[338466396,1726666240966,-193.265891,0.00019178,2]
[338466397,1726666240981,-193.265891,0.00019178,2]
[338466398,1726666240992,-193.265891,0.00019178,2]
[338466399,1726666241002,-500.0,0.00019178,2]
[338466400,1726666241011,-500.0,0.00019178,2]
[338466401,1726666241021,-151.0,0.00019178,2]
[338466402,1726666241030,-151.0,0.00019178,2]
[338466403,1726666241040,-151.0,0.00019178,2]
[338466404,1726666241049,-500.0,0.00019178,2]
[338466405,1726666241059,-500.0,0.00019178,2]
[338466406,1726666241069,-500.0,0.00019178,2]
[338466407,1726666241079,-500.0,0.00019178,2]
[338466408,1726666241088,-500.0,0.00019178,2]
[338466409,1726666241098,-513.63778498,0.00019178,2]
[338466410,1726666241107,-500.0,0.00019178,2]
[338466411,1726666241117,-500.0,0.00019178,2]
[338466412,1726666241126,-500.0,0.00019178,2]
[338466413,1726666241135,-497.0,0.00019178,2]
[338466414,1726666241145,-500.0,0.00019178,2]
[338466415,1726666241155,-2058.38,0.00019178,2]
[338466416,1726666241165,-500.0,0.00019178,2]
[338466417,1726666241174,-500.0,0.00019178,2]
[338466418,1726666241183,-1554.54,0.00019178,2]
[338466419,1726666241194,-578.23,0.00019178,2]
[338466420,1726666241203,-805.67,0.00019178,2]
[338466421,1726666241212,-500.0,0.00019178,2]
[338466422,1726666241222,-500.0,0.00019178,2]
[338466423,1726666241232,-500.0,0.00019178,2]
[338466424,1726666241242,-500.0,0.00019178,2]
[338466425,1726666241252,-500.0,0.00019178,2]
[338466426,1726666241261,-500.0,0.00019178,2]
[338466427,1726666241271,-820.14,0.00019178,2]
[338466428,1726666241281,-500.0,0.00019178,2]
[338466429,1726666241291,-641.72110543,0.00019178,2]
[338466430,1726666241301,-500.0,0.00019178,2]
[338466431,1726666241310,-500.0,0.00019178,2]
[338466432,1726666241320,-500.0,0.00019178,2]
[338466433,1726666241329,-511.76,0.00019178,2]
[338466434,1726666241339,-500.0,0.00019178,2]
[338466435,1726666241349,-500.0,0.00019178,2]
[338466436,1726666241358,-500.0,0.00019178,2]
[338466437,1726666241368,-500.0,0.00019178,2]
[338466438,1726666241377,-500.0,0.00019178,2]
[338466439,1726666241387,-500.0,0.00019178,2]
[338466440,1726666241397,-500.0,0.00019178,2]
[338466441,1726666241414,-742.58,0.00019178,2]
[338466442,1726666241425,-500.0,0.00019178,2]
[338466443,1726666241434,-500.0,0.00019178,2]
[338466444,1726666241443,-500.0,0.00019178,2]
[338466445,1726666241452,-500.0,0.00019178,2]
[338466446,1726666241461,-500.0,0.00019178,2]
[338466447,1726666241474,-500.0,0.00019178,2]
[338466448,1726666241485,-500.0,0.00019178,2]
[338466449,1726666241494,-500.0,0.00019178,2]
[338466450,1726666241503,-500.0,0.00019178,2]
[338466451,1726666241512,-590.99,0.00019178,2]
[338466452,1726666241522,-500.0,0.00019178,2]
[338466453,1726666241531,-500.0,0.00019178,2]
[338466454,1726666241541,-500.0,0.00019178,2]
[338466455,1726666241551,-500.0,0.00019178,2]
[338466456,1726666241560,-500.0,0.00019178,2]
[338466457,1726666241570,-1000.0,0.00019178,2]
[338466458,1726666241579,-500.0,0.00019178,2]
[338466459,1726666241589,-500.0,0.00019178,2]
[338466460,1726666241599,-500.0,0.00019178,2]
[338466461,1726666241608,-189.746106,0.00019178,2]
[338466462,1726666241618,-189.746106,0.00019178,2]
[338466463,1726666241627,-500.0,0.00019178,2]
[338466464,1726666241637,-189.746106,0.00019178,2]
[338466465,1726666241647,-500.0,0.00019178,2]
[338466466,1726666241659,-189.746106,0.00019178,2]
[338466467,1726666241670,-1269.02,0.00019178,2]
[338466468,1726666241688,-189.746106,0.00019178,2]
[338466469,1726666241701,-434.84051108,0.00019178,2]
[338466470,1726666241712,-189.746106,0.00019178,2]
[338466471,1726666241723,-500.0,0.00019178,2]
[338466472,1726666241734,-1515.15,0.00019178,2]
[338466473,1726666241744,-500.0,0.00019178,2]
[338466474,1726666241755,-151.0,0.00019178,2]
[338466475,1726666241765,-152.115204,0.00019178,2]
[338466476,1726666241775,-500.0,0.00019178,2]
[338466477,1726666241786,-861.01,0.00019178,2]
[338466478,1726666241796,-500.0,0.00019178,2]
[338466479,1726666241806,-1259.47,0.00019178,2]
[338466480,1726666241816,-500.0,0.00019178,2]
[338466481,1726666241827,-693.59,0.00019178,2]
[338466482,1726666241837,-500.0,0.00019178,2]
[338466483,1726666241847,-500.0,0.00019178,2]
[338466484,1726666241857,-617.59,0.00019178,2]
[338466485,1726666241867,-500.0,0.00019178,2]
[338466486,1726666241877,-501.36125652,0.00019178,2]
[338466487,1726666241887,-500.0,0.00019178,2]
[338466488,1726666241897,-504.96,0.00019178,2]
[338466489,1726666241909,-400.84237747,0.00019178,2]
[338466490,1726666241919,-999.41,0.00019178,2]
[338466491,1726666241929,-500.0,0.00019178,2]
[338466492,1726666241939,-500.0,0.00019178,2]
[338466493,1726666241950,-500.0,0.00019178,2]
[338466494,1726666241960,-500.0,0.00019178,2]
[338466495,1726666241971,-500.0,0.00019178,2]
[338466496,1726666241980,-408.00461626,0.00019178,2]
[338466497,1726666241992,-500.0,0.00019178,2]
[338466498,1726666242002,-500.0,0.00019178,2]
[338466499,1726666242012,-500.0,0.00019178,2]
[338466500,1726666242022,-500.0,0.00019178,2]
[338466501,1726666242032,-500.0,0.00019178,2]
[338466502,1726666242042,-500.0,0.00019178,2]
[338466503,1726666242052,-500.0,0.00019178,2]
[338466504,1726666242062,-626.71542843,0.00019178,2]
[338466505,1726666242071,-500.0,0.00019178,2]
[338466506,1726666242081,-500.0,0.00019178,2]
[338466507,1726666242091,-500.0,0.00019178,2]
[338466508,1726666242100,-500.0,0.00019178,2]
[338466509,1726666242110,-500.0,0.00019178,2]
[338466510,1726666242120,-899.33,0.00019178,2]
[338466511,1726666242130,-500.0,0.00019178,2]
[338466512,1726666242139,-500.0,0.00019178,2]
[338466513,1726666242149,-500.0,0.00019178,2]
[338466514,1726666242161,-500.0,0.00019178,2]
[338466515,1726666242171,-500.0,0.00019178,2]
[338466516,1726666242180,-500.0,0.00019178,2]
[338466517,1726666242190,-500.0,0.00019178,2]
[338466518,1726666242199,-500.0,0.00019178,2]
[338466519,1726666242209,-500.0,0.00019178,2]
[338466520,1726666242219,-500.0,0.00019178,2]
[338466521,1726666242228,-500.0,0.00019178,2]
[338466522,1726666242238,-248.80975726,0.00019178,2]
[338466523,1726666242247,-1038.86,0.00019178,2]
[338466524,1726666242256,-887.34,0.00019178,2]
[338466525,1726666242266,-500.0,0.00019178,2]
[338466526,1726666242275,-500.0,0.00019178,2]
[338466527,1726666242284,-500.0,0.00019178,2]
[338466528,1726666242294,-223.49469264,0.00019178,2]
[338466529,1726666242308,-500.0,0.00019178,2]
[338466530,1726666242318,-724.15,0.00019178,2]
[338466531,1726666242328,-355.53956789,0.00019178,2]
[338466532,1726666242571,-1387.52,0.00019178,2]
[338466533,1726666242582,-583.59718165,0.00019178,2]
[338466534,1726666242593,-500.0,0.00019178,2]
[338466535,1726666242603,-500.0,0.00019178,2]
[338466536,1726666242614,-500.0,0.00019178,2]
[338466537,1726666242626,-500.0,0.00019178,2]
[338466538,1726666242635,-500.0,0.00019178,2]
[338466539,1726666242645,-500.0,0.00019178,2]
[338466540,1726666242656,-585.54,0.00019178,2]
[338466541,1726666242665,-2432.78,0.00019178,2]
[338466542,1726666242674,-500.0,0.00019178,2]
[338466543,1726666242683,-2089.89,0.00019178,2]
[338466544,1726666242693,-500.0,0.00019178,2]
[338466545,1726666242703,-500.0,0.00019178,2]
[338466546,1726666242712,-500.05677308,0.00019178,2]
[338466547,1726666242721,-500.0,0.00019178,2]
[338466548,1726666242730,-500.0,0.00019178,2]
[338466549,1726666242739,-2131.9,0.00019178,2]
[338466550,1726666242749,-500.0,0.00019178,2]
[338466551,1726666242758,-501.29,0.00019178,2]
[338466552,1726666242767,-1656.31,0.00019178,2]
[338466553,1726666242777,-500.0,0.00019178,2]
[338466554,1726666242786,-500.0,0.00019178,2]
[338466555,1726666242796,-500.0,0.00019178,2]
[338466556,1726666242806,-534.77671542,0.00019178,2]
[338466558,1726666242816,-500.0,0.00019178,2]
[338466559,1726666242825,-1181.86,0.00019178,2]
[338466560,1726666242835,-504.08,0.00019178,2]
[338466561,1726666242850,-500.0,0.00019178,2]
[338466562,1726666242860,-500.0,0.00019178,2]
[338466563,1726666242869,-500.0,0.00019178,2]
[338466564,1726666242879,-1420.41,0.00019178,2]
[338466565,1726666242888,-500.0,0.00019178,2]
[338466566,1726666242898,-655.84,0.00019178,2]
[338466567,1726666242908,-361.14698278,0.00019178,2]
[338466568,1726666242917,-500.0,0.00019178,2]
[338466569,1726666242927,-500.0,0.00019178,2]
[338466570,1726666242936,-500.0,0.00019178,2]
[338466571,1726666242947,-500.0,0.00019178,2]
[338466572,1726666242958,-567.66,0.00019178,2]
[338466573,1726666242968,-500.0,0.00019178,2]
[338466574,1726666242977,-500.0,0.00019178,2]
[338466575,1726666242987,-1243.46,0.00019178,2]
[338466576,1726666242997,-858.88,0.00019178,2]
[338466577,1726666243006,-500.0,0.00019178,2]
[338466578,1726666243016,-1036.57,0.00019178,2]
[338466579,1726666243026,-655.28,0.00019178,2]
[338466580,1726666243036,-530.21,0.00019178,2]
[338466581,1726666243045,-151.0,0.00019178,2]
[338466582,1726666243055,-151.0,0.00019178,2]
[338466583,1726666243064,-151.0,0.00019178,2]
[338466584,1726666243074,-500.0,0.00019178,2]
[338466585,1726666243083,-781.41,0.00019178,2]
[338466586,1726666243093,-500.0,0.00019178,2]
[338466587,1726666243102,-567.75199924,0.00019178,2]
[338466588,1726666243111,-151.0,0.00019178,2]
[338466589,1726666243121,-151.0,0.00019178,2]
[338466590,1726666243130,-151.0,0.00019178,2]
[338466591,1726666243140,-500.0,0.00019178,2]
[338466592,1726666243149,-151.0,0.00019178,2]
[338466593,1726666243160,-151.0,0.00019178,2]
[338466594,1726666243169,-151.0,0.00019178,2]
[338466595,1726666243179,-1045.21,0.00019178,2]
[338466596,1726666243188,-500.0,0.00019178,2]
[338466597,1726666243198,-500.0,0.00019178,2]
[338466598,1726666243207,-166.982332,0.00019178,2]
[338466599,1726666243216,-500.0,0.00019178,2]
[338466600,1726666243225,-500.0,0.00019178,2]
[338466601,1726666243234,-500.0,0.00019178,2]
[338466602,1726666243243,-500.0,0.00019178,2]
[338466603,1726666243253,-529.26445904,0.00019178,2]
[338466604,1726666243262,-500.0,0.00019178,2]
[338466605,1726666243270,-1227.51,0.00019178,2]
[338466606,1726666243280,-151.0,0.00019178,2]
[338466607,1726666243289,-151.0,0.00019178,2]
[338466608,1726666243299,-151.0,0.00019178,2]
[338466609,1726666243309,-1128.76,0.00019178,2]
[338466610,1726666243318,-500.0,0.00019178,2]
[338466611,1726666243327,-151.0,0.00019178,2]
[338466612,1726666243336,-174.912994,0.00019178,2]
[338466613,1726666243346,-500.0,0.00019178,2]
[338466614,1726666243355,-500.0,0.00019178,2]
[338466615,1726666243365,-390.46,0.00019178,2]
[338466616,1726666243374,-500.0,0.00019178,2]
[338466617,1726666243383,-643.26,0.00019178,2]
[338466618,1726666243393,-512.28,0.00019178,2]
[338466619,1726666243402,-500.0,0.00019178,2]
[338466620,1726666243415,-500.0,0.00019178,2]
[338466621,1726666243424,-600.47,0.00019178,2]
[338466622,1726666243433,-500.0,0.00019178,2]
[338466623,1726666243442,-500.0,0.00019178,2]
[338466624,1726666243452,-500.0,0.00019178,2]
[338466625,1726666243461,-3902.89,0.00019178,2]
[338466626,1726666243470,-670.85,0.00019178,2]
[338466627,1726666243479,-2034.03,0.00019178,2]
[338466628,1726666243488,-500.0,0.00019178,2]
[338466629,1726666243498,-1625.64,0.00019178,2]
[338466630,1726666243507,-500.0,0.00019178,2]
[338466631,1726666243516,-500.0,0.00019178,2]
[338466632,1726666243526,-1794.08,0.00019178,2]
[338466633,1726666243535,-500.0,0.00019178,2]
[338466634,1726666243544,-500.0,0.00019178,2]
[338466635,1726666243554,-500.0,0.00019178,2]
[338466636,1726666243563,-500.0,0.00019178,2]
[338466637,1726666243572,-500.0,0.00019178,2]
[338466638,1726666243581,-500.0,0.00019178,2]
[338466639,1726666243590,-1076.86,0.00019178,2]
[338466640,1726666243599,-500.0,0.00019178,2]
[338466641,1726666243609,-500.0,0.00019178,2]
[338466642,1726666243618,-2783.32,0.00019178,2]
[338466643,1726666243627,-747.27,0.00019178,2]
[338466644,1726666243636,-500.0,0.00019178,2]
[338466645,1726666243645,-610.44,0.00019178,2]
[338466646,1726666243656,-309.0,0.00019178,2]
[338466647,1726666243665,-500.0,0.00019178,2]
[338466648,1726666243674,-500.0,0.00019178,2]
[338466649,1726666243684,-690.65,0.00019178,2]
[338466650,1726666243693,-500.0,0.00019178,2]
[338466651,1726666243703,-500.0,0.00019178,2]
[338466652,1726666243713,-500.0,0.00019178,2]
[338466653,1726666243721,-500.0,0.00019178,2]
[338466654,1726666243731,-500.0,0.00019178,2]
[338466655,1726666243741,-151.953278,0.00019178,2]
[338466656,1726666243750,-528.41126972,0.00019178,2]
[338466657,1726666243759,-537.25,0.00019178,2]
[338466658,1726666243768,-500.0,0.00019178,2]
[338466659,1726666243778,-500.0,0.00019178,2]
[338466660,1726666243787,-500.0,0.00019178,2]
[338466661,1726666243797,-2417.17,0.00019178,2]
[338466662,1726666243807,-1118.78,0.00019178,2]